[Event "Titled Tuesday Blitz April 26 Early 2022"]
[White "Demin, Vladimir"]
[Black "Petrovskyi, Vadym"]
[WhiteFideId "4167457"]
[BlackFideId "14165210"]
[WhiteElo "2375"]
[BlackElo "2400"]
[Result "0-1"]
[Round "02"]
[TimeControl "180+1"]
[Date "2022.04.26"]
[WhiteClock "0:01:32"]
[BlackClock "0:02:29"]

1. e4 {[%clk 0:03:00]}  c5 {[%clk 0:03:00]} 2. Nf3 {[%clk 0:03:00]}  d6 {[%clk 0:03:00]} 3. d4 {[%clk 0:03:00]}  cxd4 {[%clk 0:03:01]} 4. Qxd4 {[%clk 0:03:01]}  Nc6 {[%clk 0:02:57]} 5. Bb5 {[%clk 0:03:01]}  Bd7 {[%clk 0:02:57]} 6. Bxc6 {[%clk 0:03:01]}  Bxc6 {[%clk 0:02:58]} 7. Nc3 {[%clk 0:03:02]}  Nf6 {[%clk 0:02:58]} 8. Bg5 {[%clk 0:03:02]}  e6 {[%clk 0:02:59]} 9. O-O-O {[%clk 0:03:03]}  Be7 {[%clk 0:02:59]} 10. Qd3 {[%clk 0:03:03]}  Qa5 {[%clk 0:02:58]} 11. Kb1 {[%clk 0:03:02]}  O-O {[%clk 0:02:58]} 12. Bc1 {[%clk 0:03:02]}  d5 {[%clk 0:02:47]} 13. e5 {[%clk 0:02:22]}  Ne4 {[%clk 0:02:45]} 14. Be3 {[%clk 0:01:39]}  Bb4 {[%clk 0:02:31]} 15. Ne2 {[%clk 0:01:32]}  Bb5 {[%clk 0:02:29]} 0-1


[Site "https://www.chess.com"]

[Event "Titled Tuesday Blitz April 26 Early 2022"]
[White "Deviprasath, Sharvesh"]
[Black "Sovetbekova, Nurai"]
[WhiteFideId "30938228"]
[BlackFideId "13801910"]
[WhiteElo "2102"]
[BlackElo "1538"]
[Result "0-1"]
[Round "02"]
[TimeControl "180+1"]
[Date "2022.04.26"]
[WhiteClock "0:00:06"]
[BlackClock "0:00:08"]

1. Nf3 {[%clk 0:03:00]}  Nf6 {[%clk 0:02:58]} 2. c4 {[%clk 0:03:01]}  g6 {[%clk 0:02:51]} 3. Nc3 {[%clk 0:02:58]}  d5 {[%clk 0:02:51]} 4. cxd5 {[%clk 0:02:55]}  Nxd5 {[%clk 0:02:51]} 5. h4 {[%clk 0:02:56]}  Bg7 {[%clk 0:02:44]} 6. h5 {[%clk 0:02:39]}  Nxc3 {[%clk 0:02:39]} 7. bxc3 {[%clk 0:02:40]}  c5 {[%clk 0:02:25]} 8. h6 {[%clk 0:02:38]}  Bf6 {[%clk 0:02:24]} 9. e4 {[%clk 0:02:38]}  Nc6 {[%clk 0:02:24]} 10. Bb5 {[%clk 0:02:34]}  Bg4 {[%clk 0:02:21]} 11. Ba3 {[%clk 0:02:20]}  Qb6 {[%clk 0:02:12]} 12. Rb1 {[%clk 0:02:17]}  a6 {[%clk 0:02:11]} 13. Ba4 {[%clk 0:01:58]}  Qc7 {[%clk 0:02:04]} 14. Bxc5 {[%clk 0:01:57]}  b5 {[%clk 0:02:03]} 15. Bb3 {[%clk 0:01:53]}  Ne5 {[%clk 0:02:00]} 16. Be3 {[%clk 0:01:45]}  Nd3+ {[%clk 0:01:28]} 17. Kf1 {[%clk 0:01:41]}  O-O {[%clk 0:01:28]} 18. Qc2 {[%clk 0:01:39]}  Bxf3 {[%clk 0:01:17]} 19. Qxd3 {[%clk 0:01:39]}  Rad8 {[%clk 0:01:13]} 20. Bd4 {[%clk 0:01:36]}  Bh5 {[%clk 0:00:47]} 21. Qe3 {[%clk 0:01:13]}  Bxd4 {[%clk 0:00:43]} 22. cxd4 {[%clk 0:01:13]}  Qd6 {[%clk 0:00:28]} 23. d5 {[%clk 0:01:10]}  Rc8 {[%clk 0:00:25]} 24. f3 {[%clk 0:01:03]}  Qf6 {[%clk 0:00:22]} 25. Kg1 {[%clk 0:01:00]}  Qe5 {[%clk 0:00:15]} 26. d4 {[%clk 0:00:51]}  Qg3 {[%clk 0:00:15]} 27. Rh3 {[%clk 0:00:42]}  Qc7 {[%clk 0:00:13]} 28. g4 {[%clk 0:00:41]}  Bxg4 {[%clk 0:00:13]} 29. fxg4 {[%clk 0:00:39]}  Qd7 {[%clk 0:00:14]} 30. g5 {[%clk 0:00:36]}  b4 {[%clk 0:00:14]} 31. Rg3 {[%clk 0:00:35]}  Rc3 {[%clk 0:00:13]} 32. Qf4 {[%clk 0:00:31]}  Rfc8 {[%clk 0:00:12]} 33. Rxc3 {[%clk 0:00:26]}  Rxc3 {[%clk 0:00:13]} 34. Rf1 {[%clk 0:00:26]}  f6 {[%clk 0:00:09]} 35. gxf6 {[%clk 0:00:26]}  exf6 {[%clk 0:00:09]} 36. Qxf6 {[%clk 0:00:27]}  Qg4+ {[%clk 0:00:09]} 37. Kf2 {[%clk 0:00:15]}  Qg3+ {[%clk 0:00:09]} 38. Ke2 {[%clk 0:00:15]}  Qe3+ {[%clk 0:00:09]} 39. Kd1 {[%clk 0:00:12]}  Rd3+ {[%clk 0:00:08]} 40. Kc2 {[%clk 0:00:10]}  Rd2+ {[%clk 0:00:07]} 41. Kb1 {[%clk 0:00:09]}  Qd3+ {[%clk 0:00:08]} 42. Kc1 {[%clk 0:00:05]}  Qc3+ {[%clk 0:00:08]} 43. Kb1 {[%clk 0:00:06]}  Qb2# {[%clk 0:00:08]} 0-1


[Site "https://www.chess.com"]

[Event "Titled Tuesday Blitz April 26 Early 2022"]
[White "Di Nicolantonio, Lucas"]
[Black "Rottenwohrer Suarez, Juan"]
[WhiteFideId "680460"]
[BlackFideId "32068182"]
[WhiteElo "2381"]
[BlackElo "2158"]
[Result "1-0"]
[Round "02"]
[TimeControl "180+1"]
[Date "2022.04.26"]
[WhiteClock "0:00:13"]
[BlackClock "0:00:01"]

1. c4 {[%clk 0:03:00]}  Nf6 {[%clk 0:02:59]} 2. Nc3 {[%clk 0:03:00]}  g6 {[%clk 0:02:52]} 3. Nf3 {[%clk 0:02:56]}  Bg7 {[%clk 0:02:50]} 4. g3 {[%clk 0:02:56]}  b6 {[%clk 0:02:47]} 5. Bg2 {[%clk 0:02:56]}  Bb7 {[%clk 0:02:48]} 6. O-O {[%clk 0:02:57]}  O-O {[%clk 0:02:48]} 7. d4 {[%clk 0:02:55]}  Ne4 {[%clk 0:02:48]} 8. Nxe4 {[%clk 0:02:50]}  Bxe4 {[%clk 0:02:49]} 9. Be3 {[%clk 0:02:45]}  d6 {[%clk 0:01:54]} 10. Qd2 {[%clk 0:02:42]}  Nd7 {[%clk 0:01:55]} 11. d5 {[%clk 0:02:39]}  c6 {[%clk 0:01:49]} 12. Nd4 {[%clk 0:02:34]}  cxd5 {[%clk 0:01:40]} 13. Nc6 {[%clk 0:02:34]}  Qe8 {[%clk 0:01:36]} 14. cxd5 {[%clk 0:02:35]}  Bxg2 {[%clk 0:01:35]} 15. Kxg2 {[%clk 0:02:35]}  Ne5 {[%clk 0:01:33]} 16. Rac1 {[%clk 0:02:35]}  Rc8 {[%clk 0:01:06]} 17. Nxa7 {[%clk 0:02:17]}  Ra8 {[%clk 0:00:59]} 18. Bxb6 {[%clk 0:02:09]}  Qb8 {[%clk 0:00:54]} 19. Qa5 {[%clk 0:01:50]}  Nd7 {[%clk 0:00:43]} 20. Be3 {[%clk 0:01:39]}  Qxb2 {[%clk 0:00:40]} 21. Rc7 {[%clk 0:01:36]}  Nc5 {[%clk 0:00:27]} 22. Qb5 {[%clk 0:01:28]}  Qxa2 {[%clk 0:00:19]} 23. Nc6 {[%clk 0:01:10]}  Qxd5+ {[%clk 0:00:14]} 24. f3 {[%clk 0:01:10]}  Bf6 {[%clk 0:00:14]} 25. Bd4 {[%clk 0:01:05]}  Qb3 {[%clk 0:00:05]} 26. Bxf6 {[%clk 0:00:57]}  exf6 {[%clk 0:00:06]} 27. Ne7+ {[%clk 0:00:42]}  Kg7 {[%clk 0:00:07]} 28. Qc6 {[%clk 0:00:42]}  Qe6 {[%clk 0:00:01]} 29. Rf2 {[%clk 0:00:39]}  Ra2 {[%clk 0:00:02]} 30. Qb5 {[%clk 0:00:31]}  Rd8 {[%clk 0:00:01]} 31. Nc6 {[%clk 0:00:28]}  Rda8 {[%clk 0:00:01]} 32. Nd4 {[%clk 0:00:28]}  Qd5 {[%clk 0:00:01]} 33. Nb3 {[%clk 0:00:13]} 1-0


[Site "https://www.chess.com"]

[Event "Titled Tuesday Blitz April 26 Early 2022"]
[White "Dubov, Daniil"]
[Black "Szpar, Milosz"]
[WhiteFideId "24126055"]
[BlackFideId "1184989"]
[WhiteElo "2791"]
[BlackElo "2447"]
[Result "1-0"]
[Round "02"]
[TimeControl "180+1"]
[Date "2022.04.26"]
[WhiteClock "0:01:42"]
[BlackClock "0:02:25"]

1. d4 {[%clk 0:03:00]}  Nf6 {[%clk 0:02:59]} 2. Nf3 {[%clk 0:02:59]}  e6 {[%clk 0:02:58]} 3. c4 {[%clk 0:02:59]}  c5 {[%clk 0:02:58]} 4. d5 {[%clk 0:02:57]}  d6 {[%clk 0:02:56]} 5. Nc3 {[%clk 0:02:56]}  exd5 {[%clk 0:02:57]} 6. cxd5 {[%clk 0:02:57]}  g6 {[%clk 0:02:57]} 7. Nd2 {[%clk 0:02:57]}  Bg7 {[%clk 0:02:53]} 8. e4 {[%clk 0:02:58]}  O-O {[%clk 0:02:53]} 9. Be2 {[%clk 0:02:58]}  Na6 {[%clk 0:02:49]} 10. O-O {[%clk 0:02:58]}  Nc7 {[%clk 0:02:49]} 11. a4 {[%clk 0:02:56]}  b6 {[%clk 0:02:49]} 12. h3 {[%clk 0:02:43]}  a6 {[%clk 0:02:40]} 13. Nc4 {[%clk 0:02:36]}  Rb8 {[%clk 0:02:40]} 14. Bf4 {[%clk 0:02:34]}  Nfe8 {[%clk 0:02:41]} 15. e5 {[%clk 0:02:26]}  dxe5 {[%clk 0:02:36]} 16. Nxe5 {[%clk 0:02:27]}  Bb7 {[%clk 0:02:30]} 17. Bf3 {[%clk 0:02:14]}  Qf6 {[%clk 0:02:26]} 18. Qd2 {[%clk 0:01:56]}  Rd8 {[%clk 0:02:25]} 19. Bg5 {[%clk 0:01:45]}  Qxe5 {[%clk 0:02:24]} 20. Bxd8 {[%clk 0:01:46]}  Nf6 {[%clk 0:02:25]} 21. Rfe1 {[%clk 0:01:42]} 1-0


[Site "https://www.chess.com"]

[Event "Titled Tuesday Blitz April 26 Early 2022"]
[White "Fajdetic, Hrvoje"]
[Black "Lucas, Arthur"]
[WhiteFideId "14501945"]
[BlackFideId "26093073"]
[WhiteElo "2172"]
[BlackElo "2129"]
[Result "0-1"]
[Round "02"]
[TimeControl "180+1"]
[Date "2022.04.26"]
[WhiteClock "0:00:02"]
[BlackClock "0:01:11"]

1. d4 {[%clk 0:02:54]}  g6 {[%clk 0:02:57]} 2. e4 {[%clk 0:02:51]}  Bg7 {[%clk 0:02:57]} 3. Nc3 {[%clk 0:02:52]}  a6 {[%clk 0:02:57]} 4. Be3 {[%clk 0:02:52]}  b5 {[%clk 0:02:57]} 5. Qd2 {[%clk 0:02:51]}  d6 {[%clk 0:02:58]} 6. h4 {[%clk 0:02:48]}  h6 {[%clk 0:02:57]} 7. h5 {[%clk 0:02:42]}  g5 {[%clk 0:02:57]} 8. f4 {[%clk 0:02:41]}  gxf4 {[%clk 0:02:57]} 9. Bxf4 {[%clk 0:02:41]}  Nd7 {[%clk 0:02:58]} 10. Nf3 {[%clk 0:02:39]}  c5 {[%clk 0:02:58]} 11. d5 {[%clk 0:02:27]}  Ngf6 {[%clk 0:02:48]} 12. O-O-O {[%clk 0:02:24]}  b4 {[%clk 0:02:48]} 13. Nb1 {[%clk 0:02:15]}  Nxe4 {[%clk 0:02:48]} 14. Qe3 {[%clk 0:02:15]}  Ndf6 {[%clk 0:02:34]} 15. Bd3 {[%clk 0:02:14]}  Bf5 {[%clk 0:02:28]} 16. g4 {[%clk 0:02:13]}  Nxg4 {[%clk 0:02:26]} 17. Qg1 {[%clk 0:02:12]}  Rg8 {[%clk 0:02:20]} 18. Nh4 {[%clk 0:01:58]}  Ngf2 {[%clk 0:02:11]} 19. Nxf5 {[%clk 0:01:52]}  Bxb2+ {[%clk 0:02:09]} 20. Kxb2 {[%clk 0:01:52]}  Rxg1 {[%clk 0:02:09]} 21. Rhxg1 {[%clk 0:01:49]}  Nxd1+ {[%clk 0:02:06]} 22. Kc1 {[%clk 0:01:33]}  Kd7 {[%clk 0:01:53]} 23. Bxe4 {[%clk 0:01:24]}  Nc3 {[%clk 0:01:50]} 24. Nxc3 {[%clk 0:01:02]}  bxc3 {[%clk 0:01:51]} 25. Nxh6 {[%clk 0:01:00]}  Qa5 {[%clk 0:01:45]} 26. Nxf7 {[%clk 0:00:48]}  Qxa2 {[%clk 0:01:40]} 27. Kd1 {[%clk 0:00:38]}  Rf8 {[%clk 0:01:36]} 28. Bf5+ {[%clk 0:00:36]}  Kc7 {[%clk 0:01:35]} 29. Be6 {[%clk 0:00:36]}  Qa4 {[%clk 0:01:30]} 30. Be3 {[%clk 0:00:29]}  Qe4 {[%clk 0:01:28]} 31. Rg3 {[%clk 0:00:25]}  Qh1+ {[%clk 0:01:24]} 32. Ke2 {[%clk 0:00:25]}  Qxh5+ {[%clk 0:01:21]} 33. Kd3 {[%clk 0:00:24]}  Rxf7 {[%clk 0:01:20]} 34. Bxf7 {[%clk 0:00:21]}  Qxf7 {[%clk 0:01:21]} 35. Kxc3 {[%clk 0:00:19]}  Qxd5 {[%clk 0:01:21]} 36. Rh3 {[%clk 0:00:10]}  Kc6 {[%clk 0:01:18]} 37. Kb2 {[%clk 0:00:09]}  Qc4 {[%clk 0:01:17]} 38. Rh7 {[%clk 0:00:06]}  Qb4+ {[%clk 0:01:17]} 39. Ka2 {[%clk 0:00:04]}  Qa4+ {[%clk 0:01:14]} 40. Kb2 {[%clk 0:00:04]}  Qb5+ {[%clk 0:01:15]} 41. Kc1 {[%clk 0:00:03]}  Qe2 {[%clk 0:01:14]} 42. Bd2 {[%clk 0:00:02]}  Qf1+ {[%clk 0:01:13]} 43. Kb2 {[%clk 0:00:02]}  a5 {[%clk 0:01:11]} 44. Rxe7 {[%clk 0:00:02]}  Qf6+ {[%clk 0:01:11]} 0-1


[Site "https://www.chess.com"]

[Event "Titled Tuesday Blitz April 26 Early 2022"]
[White "Federzoni, Enzo"]
[Black "Tatarinov, Dmitry"]
[WhiteFideId "2173301"]
[BlackFideId "24160067"]
[WhiteElo "1956"]
[BlackElo "2302"]
[Result "0-1"]
[Round "02"]
[TimeControl "180+1"]
[Date "2022.04.26"]
[WhiteClock "0:01:02"]
[BlackClock "0:02:02"]

1. c4 {[%clk 0:03:00]}  Nf6 {[%clk 0:02:59]} 2. Nc3 {[%clk 0:03:00]}  e6 {[%clk 0:02:59]} 3. e4 {[%clk 0:02:56]}  c5 {[%clk 0:02:58]} 4. g3 {[%clk 0:02:46]}  Nc6 {[%clk 0:02:56]} 5. Bg2 {[%clk 0:02:46]}  d6 {[%clk 0:02:53]} 6. Nge2 {[%clk 0:02:45]}  Be7 {[%clk 0:02:50]} 7. d4 {[%clk 0:02:44]}  cxd4 {[%clk 0:02:47]} 8. Nxd4 {[%clk 0:02:45]}  Kf8 {[%clk 0:02:47]} 9. O-O {[%clk 0:02:39]}  a6 {[%clk 0:02:47]} 10. Nxc6 {[%clk 0:02:32]}  bxc6 {[%clk 0:02:47]} 11. e5 {[%clk 0:02:33]}  dxe5 {[%clk 0:02:43]} 12. Qxd8+ {[%clk 0:02:34]}  Bxd8 {[%clk 0:02:44]} 13. Bxc6 {[%clk 0:02:34]}  Rb8 {[%clk 0:02:42]} 14. Rd1 {[%clk 0:02:26]}  Bb6 {[%clk 0:02:39]} 15. c5 {[%clk 0:02:14]}  Bc7 {[%clk 0:02:35]} 16. Bg5 {[%clk 0:02:09]}  h6 {[%clk 0:02:25]} 17. Bxf6 {[%clk 0:01:54]}  gxf6 {[%clk 0:02:23]} 18. b3 {[%clk 0:01:54]}  f5 {[%clk 0:02:23]} 19. Rd3 {[%clk 0:01:50]}  h5 {[%clk 0:02:18]} 20. Rad1 {[%clk 0:01:46]}  e4 {[%clk 0:02:18]} 21. Re3 {[%clk 0:01:33]}  h4 {[%clk 0:02:17]} 22. Ne2 {[%clk 0:01:22]}  Ke7 {[%clk 0:02:14]} 23. Nf4 {[%clk 0:01:20]}  Bxf4 {[%clk 0:02:10]} 24. gxf4 {[%clk 0:01:21]}  Rg8+ {[%clk 0:02:08]} 25. Kf1 {[%clk 0:01:20]}  Rg4 {[%clk 0:02:08]} 26. Ke2 {[%clk 0:01:06]}  Rxf4 {[%clk 0:02:08]} 27. Rg1 {[%clk 0:01:03]}  a5 {[%clk 0:02:04]} 28. Rg8 {[%clk 0:01:02]}  Ba6+ {[%clk 0:02:02]} 0-1


[Site "https://www.chess.com"]

[Event "Titled Tuesday Blitz April 26 Early 2022"]
[White "Fernandez, Daniel Howard"]
[Black "Lewicki, Miroslaw"]
[WhiteFideId "5801605"]
[BlackFideId "1113380"]
[WhiteElo "2831"]
[BlackElo "2532"]
[Result "1-0"]
[Round "02"]
[TimeControl "180+1"]
[Date "2022.04.26"]
[WhiteClock "0:01:02"]
[BlackClock "0:00:21"]

1. e4 {[%clk 0:03:00]}  c5 {[%clk 0:02:59]} 2. Nf3 {[%clk 0:03:01]}  d6 {[%clk 0:02:57]} 3. d4 {[%clk 0:02:59]}  cxd4 {[%clk 0:02:55]} 4. Nxd4 {[%clk 0:03:00]}  Nf6 {[%clk 0:02:54]} 5. Nc3 {[%clk 0:03:01]}  a6 {[%clk 0:02:55]} 6. h3 {[%clk 0:02:57]}  b5 {[%clk 0:02:52]} 7. g4 {[%clk 0:02:51]}  Bb7 {[%clk 0:02:53]} 8. Bg2 {[%clk 0:02:47]}  e6 {[%clk 0:02:53]} 9. O-O {[%clk 0:02:43]}  b4 {[%clk 0:02:51]} 10. Nd5 {[%clk 0:02:08]}  exd5 {[%clk 0:02:50]} 11. exd5 {[%clk 0:02:09]}  Be7 {[%clk 0:02:36]} 12. Nc6 {[%clk 0:02:09]}  Bxc6 {[%clk 0:01:54]} 13. dxc6 {[%clk 0:02:09]}  d5 {[%clk 0:01:55]} 14. g5 {[%clk 0:01:58]}  Ne4 {[%clk 0:01:55]} 15. c7 {[%clk 0:01:59]}  Qxc7 {[%clk 0:01:47]} 16. Qxd5 {[%clk 0:01:59]}  Nxg5 {[%clk 0:01:21]} 17. Bxg5 {[%clk 0:01:46]}  Ra7 {[%clk 0:01:19]} 18. Bxe7 {[%clk 0:01:33]}  Kxe7 {[%clk 0:01:17]} 19. Rfe1+ {[%clk 0:01:34]}  Kf8 {[%clk 0:01:17]} 20. Rad1 {[%clk 0:01:33]}  g6 {[%clk 0:01:07]} 21. Qd4 {[%clk 0:01:02]}  Rg8 {[%clk 0:01:03]} 22. Qf6 {[%clk 0:01:02]}  Nd7 {[%clk 0:00:56]} 23. Rxd7 {[%clk 0:01:02]}  Qxd7 {[%clk 0:00:55]} 24. Bc6 {[%clk 0:01:03]}  Qd6 {[%clk 0:00:21]} 25. Qxd6+ {[%clk 0:01:02]} 1-0


[Site "https://www.chess.com"]

[Event "Titled Tuesday Blitz April 26 Early 2022"]
[White "Fernandez Siles, Luis"]
[Black "Asavasaetakul, Chawit"]
[WhiteFideId "2209420"]
[BlackFideId "6204856"]
[WhiteElo "2212"]
[BlackElo "1697"]
[Result "0-1"]
[Round "02"]
[TimeControl "180+1"]
[Date "2022.04.26"]
[WhiteClock "0:00:09"]
[BlackClock "0:00:29"]

1. d4 {[%clk 0:03:00]}  d5 {[%clk 0:02:59]} 2. c4 {[%clk 0:03:00]}  c6 {[%clk 0:03:00]} 3. Nc3 {[%clk 0:02:59]}  dxc4 {[%clk 0:02:59]} 4. e4 {[%clk 0:02:57]}  b5 {[%clk 0:02:58]} 5. Nf3 {[%clk 0:02:57]}  Nf6 {[%clk 0:02:55]} 6. e5 {[%clk 0:02:51]}  Nd5 {[%clk 0:02:54]} 7. Ne4 {[%clk 0:02:51]}  e6 {[%clk 0:02:41]} 8. Be2 {[%clk 0:02:46]}  Nd7 {[%clk 0:02:40]} 9. O-O {[%clk 0:02:43]}  Bb7 {[%clk 0:02:40]} 10. Nfg5 {[%clk 0:02:17]}  h6 {[%clk 0:02:36]} 11. Nh3 {[%clk 0:02:01]}  c5 {[%clk 0:02:34]} 12. Be3 {[%clk 0:01:55]}  Nxe3 {[%clk 0:02:30]} 13. fxe3 {[%clk 0:01:55]}  Bxe4 {[%clk 0:02:30]} 14. Bf3 {[%clk 0:01:40]}  Bd3 {[%clk 0:01:36]} 15. Bxa8 {[%clk 0:01:22]}  Bxf1 {[%clk 0:01:32]} 16. Bc6 {[%clk 0:01:23]}  Bd3 {[%clk 0:01:31]} 17. d5 {[%clk 0:01:21]}  exd5 {[%clk 0:01:28]} 18. e6 {[%clk 0:01:21]}  fxe6 {[%clk 0:01:26]} 19. Nf4 {[%clk 0:01:20]}  Qg5 {[%clk 0:01:14]} 20. Bxb5 {[%clk 0:01:03]}  Bd6 {[%clk 0:01:11]} 21. Qa4 {[%clk 0:01:01]}  Qe7 {[%clk 0:00:57]} 22. Qxa7 {[%clk 0:00:54]}  Bxf4 {[%clk 0:00:45]} 23. exf4 {[%clk 0:00:54]}  Rf8 {[%clk 0:00:45]} 24. Re1 {[%clk 0:00:50]}  Qd6 {[%clk 0:00:45]} 25. g3 {[%clk 0:00:27]}  Ke7 {[%clk 0:00:44]} 26. a4 {[%clk 0:00:26]}  Rd8 {[%clk 0:00:40]} 27. Qa5 {[%clk 0:00:18]}  Nf6 {[%clk 0:00:38]} 28. Qd2 {[%clk 0:00:13]}  Ne4 {[%clk 0:00:37]} 29. Qe3 {[%clk 0:00:12]}  Kf8 {[%clk 0:00:37]} 30. Qf3 {[%clk 0:00:11]}  Qb6 {[%clk 0:00:35]} 31. Qh5 {[%clk 0:00:11]}  c3 {[%clk 0:00:33]} 32. bxc3 {[%clk 0:00:11]}  c4+ {[%clk 0:00:33]} 33. Kg2 {[%clk 0:00:10]}  Qf2+ {[%clk 0:00:33]} 34. Kh3 {[%clk 0:00:10]}  Qxe1 {[%clk 0:00:30]} 35. Qh4 {[%clk 0:00:11]}  Nf2+ {[%clk 0:00:29]} 36. Kg2 {[%clk 0:00:09]}  Qf1+ {[%clk 0:00:29]} 37. Kf3 {[%clk 0:00:08]}  Ne4+ {[%clk 0:00:29]} 38. Ke3 {[%clk 0:00:09]}  Qf2# {[%clk 0:00:29]} 0-1


[Site "https://www.chess.com"]

[Event "Titled Tuesday Blitz April 26 Early 2022"]
[White "Fiorito, Fabian"]
[Black "Redor, Menandro"]
[WhiteFideId "100200"]
[BlackFideId "5222010"]
[WhiteElo "2395"]
[BlackElo "1986"]
[Result "1-0"]
[Round "02"]
[TimeControl "180+1"]
[Date "2022.04.26"]
[WhiteClock "0:00:36"]
[BlackClock "0:00:08"]

1. d4 {[%clk 0:03:00]}  c5 {[%clk 0:02:52]} 2. d5 {[%clk 0:03:00]}  d6 {[%clk 0:02:52]} 3. Nc3 {[%clk 0:03:01]}  g6 {[%clk 0:02:51]} 4. e4 {[%clk 0:03:01]}  Bg7 {[%clk 0:02:49]} 5. Nf3 {[%clk 0:03:02]}  e6 {[%clk 0:02:47]} 6. Bb5+ {[%clk 0:02:57]}  Bd7 {[%clk 0:02:43]} 7. Bxd7+ {[%clk 0:02:54]}  Qxd7 {[%clk 0:02:42]} 8. O-O {[%clk 0:02:54]}  e5 {[%clk 0:02:35]} 9. a4 {[%clk 0:02:51]}  Ne7 {[%clk 0:02:34]} 10. h3 {[%clk 0:02:45]}  O-O {[%clk 0:02:34]} 11. Re1 {[%clk 0:02:33]}  Na6 {[%clk 0:02:29]} 12. Qe2 {[%clk 0:02:21]}  f5 {[%clk 0:02:27]} 13. Ng5 {[%clk 0:02:21]}  Nc7 {[%clk 0:02:26]} 14. exf5 {[%clk 0:02:04]}  Rxf5 {[%clk 0:02:21]} 15. Qd3 {[%clk 0:01:59]}  Raf8 {[%clk 0:02:16]} 16. Nge4 {[%clk 0:01:59]}  a6 {[%clk 0:02:10]} 17. a5 {[%clk 0:01:59]}  Nb5 {[%clk 0:01:46]} 18. Bg5 {[%clk 0:01:52]}  Nxc3 {[%clk 0:01:42]} 19. bxc3 {[%clk 0:01:53]}  h6 {[%clk 0:01:24]} 20. Bxe7 {[%clk 0:01:53]}  Qxe7 {[%clk 0:01:25]} 21. c4 {[%clk 0:01:51]}  Kh7 {[%clk 0:01:25]} 22. Rab1 {[%clk 0:01:51]}  R8f7 {[%clk 0:01:23]} 23. Rb3 {[%clk 0:01:50]}  Qh4 {[%clk 0:01:16]} 24. Qg3 {[%clk 0:01:31]}  Qd8 {[%clk 0:00:45]} 25. Reb1 {[%clk 0:01:29]}  Qxa5 {[%clk 0:00:41]} 26. Nxd6 {[%clk 0:01:28]}  Rxf2 {[%clk 0:00:31]} 27. Nxf7 {[%clk 0:01:26]}  Rxf7 {[%clk 0:00:30]} 28. Rxb7 {[%clk 0:01:15]}  Rf5 {[%clk 0:00:15]} 29. h4 {[%clk 0:01:07]}  Qd2 {[%clk 0:00:12]} 30. R1b6 {[%clk 0:00:51]}  Qd4+ {[%clk 0:00:11]} 31. Kh2 {[%clk 0:00:51]}  g5 {[%clk 0:00:10]} 32. h5 {[%clk 0:00:34]}  Rf4 {[%clk 0:00:09]} 33. Qd3+ {[%clk 0:00:34]}  Qxd3 {[%clk 0:00:09]} 34. cxd3 {[%clk 0:00:35]}  Rh4+ {[%clk 0:00:08]} 35. Kg1 {[%clk 0:00:36]}  Rxh5 {[%clk 0:00:07]} 36. Re6 {[%clk 0:00:36]}  g4 {[%clk 0:00:07]} 37. Ree7 {[%clk 0:00:36]}  Rg5 {[%clk 0:00:08]} 38. d6 {[%clk 0:00:37]}  Kg6 {[%clk 0:00:08]} 39. Rxg7+ {[%clk 0:00:36]} 1-0


[Site "https://www.chess.com"]

[Event "Titled Tuesday Blitz April 26 Early 2022"]
[White "Grandelius, Nils"]
[Black "Cunha, Lucas Aguiar"]
[WhiteFideId "1710400"]
[BlackFideId "2125404"]
[WhiteElo "2617"]
[BlackElo "2361"]
[Result "1-0"]
[Round "02"]
[TimeControl "180+1"]
[Date "2022.04.26"]
[WhiteClock "0:00:39"]
[BlackClock "0:01:18"]

1. d4 {[%clk 0:03:00]}  Nf6 {[%clk 0:03:00]} 2. Nf3 {[%clk 0:03:01]}  c5 {[%clk 0:02:59]} 3. e3 {[%clk 0:02:59]}  b6 {[%clk 0:02:56]} 4. c4 {[%clk 0:02:54]}  Bb7 {[%clk 0:02:56]} 5. d5 {[%clk 0:02:53]}  e6 {[%clk 0:02:56]} 6. Nc3 {[%clk 0:02:54]}  exd5 {[%clk 0:02:56]} 7. cxd5 {[%clk 0:02:55]}  g6 {[%clk 0:02:57]} 8. e4 {[%clk 0:02:55]}  Bg7 {[%clk 0:02:57]} 9. Bd3 {[%clk 0:02:23]}  O-O {[%clk 0:02:56]} 10. O-O {[%clk 0:02:23]}  d6 {[%clk 0:02:57]} 11. h3 {[%clk 0:02:22]}  Na6 {[%clk 0:02:54]} 12. Bf4 {[%clk 0:02:19]}  Qe7 {[%clk 0:02:42]} 13. Re1 {[%clk 0:02:19]}  Nb4 {[%clk 0:02:36]} 14. Bc4 {[%clk 0:02:10]}  a6 {[%clk 0:02:07]} 15. a3 {[%clk 0:02:08]}  b5 {[%clk 0:02:08]} 16. Bf1 {[%clk 0:02:00]}  Nh5 {[%clk 0:02:06]} 17. Bg5 {[%clk 0:01:48]}  Qc7 {[%clk 0:02:05]} 18. axb4 {[%clk 0:01:21]}  cxb4 {[%clk 0:02:05]} 19. Na2 {[%clk 0:01:22]}  a5 {[%clk 0:02:01]} 20. Qd2 {[%clk 0:01:15]}  Qd7 {[%clk 0:01:47]} 21. Nd4 {[%clk 0:01:11]}  Rfc8 {[%clk 0:01:40]} 22. Bxb5 {[%clk 0:01:07]}  Qc7 {[%clk 0:01:41]} 23. Nc6 {[%clk 0:01:05]}  Re8 {[%clk 0:01:38]} 24. Rac1 {[%clk 0:00:56]}  Qb6 {[%clk 0:01:35]} 25. Ba4 {[%clk 0:00:57]}  f6 {[%clk 0:01:29]} 26. Be3 {[%clk 0:00:54]}  Qa6 {[%clk 0:01:25]} 27. Bd4 {[%clk 0:00:49]}  g5 {[%clk 0:01:19]} 28. g3 {[%clk 0:00:44]}  Bc8 {[%clk 0:01:18]} 29. Qd1 {[%clk 0:00:39]} 1-0


[Site "https://www.chess.com"]